bitfinex-derivatives/quotes_ETHF0:USTF0_20250604
["timestamp","ask_amount","ask_price","bid_price","bid_amount"]
[1749052408777,0.74865,2670.3,2670.1,0.74867]
[1749052408978,0.75424525,2670.4,2670.2,0.74865]
[1749052409169,0.00562525,2670.4,2670.2,3.2078]
[1749052409372,0.75422525,2670.4,2670.2,3.2078]
[1749052409568,0.00562525,2670.4,2670.3,0.74862]
[1749052409783,0.75422525,2670.4,2670.3,0.74862]
[1749052409978,0.75422525,2670.4,2670.2,3.95643]
[1749052410183,0.00562525,2670.4,2670.3,0.74862]
[1749052410681,0.00562525,2670.4,2670.3,1.98752]
[1749052411679,0.00562525,2670.4,2670.3,1.2389]
[1749052411878,0.00562525,2670.4,2670.3,1.98752]
[1749052414382,0.75422525,2670.4,2670.3,1.2389]
[1749052414580,0.00562525,2670.4,2670.3,1.98752]
[1749052416681,0.75422525,2670.4,2670.3,6.8109]
[1749052416877,0.74862,2670.3,2670.2,0.9167]
[1749052417182,0.74862,2670.3,2669.9,8.7798]
[1749052417183,0.74871,2670.0,2669.9,3.2078]
[1749052418573,1.87183,2670.0,2669.5,3.2078]
[1749052418881,0.74874,2669.9,2669.7,0.74877]
[1749052419288,2.73787,2670.2,2669.6,1.2157]
[1749052419587,0.75423525,2670.4,2670.1,0.74867]
[1749052419790,0.00562525,2670.4,2669.7,5.07979]
[1749052419980,0.7487,2670.1,2669.8,6.4543]
[1749052420179,0.74867,2670.2,2669.9,0.74871]
[1749052420379,0.74869,2670.1,2669.9,0.74871]
[1749052420689,0.74864,2670.3,2670.1,0.74868]
[1749052420894,0.74865,2670.2,2670.0,0.74869]
[1749052422388,0.74867,2670.2,2670.0,0.74869]
[1749052422588,0.74869,2670.1,2669.8,7.6713]
[1749052422787,5.08494525,2670.4,2670.0,0.74871]
[1749052422985,0.74869,2670.1,2670.0,0.74871]
[1749052423588,0.74869,2670.1,2669.0,0.00562525]
[1749052423589,8.2078,2670.1,2669.2,47.4085]
[1749052423787,0.74887,2669.5,2669.4,0.74887]
[1749052424083,0.74888,2669.4,2669.2,44.94961]
[1749052424289,1.87199,2669.7,2669.2,44.2007]
[1749052424290,0.7489,2669.3,2669.2,44.2007]
[1749052424486,0.7489,2669.3,2669.2,6.4267]
[1749052424683,0.7489,2669.3,2669.2,7.17562]
[1749052424890,0.7489,2669.3,2669.2,6.4267]
[1749052425191,0.74896,2669.1,2669.0,5.25e-06]
[1749052425385,0.74896,2669.1,2668.2,0.8896]
[1749052425386,0.74919,2668.3,2668.2,0.8896]
[1749052425593,0.74924,2668.1,2668.0,5.572]
[1749052425792,0.7491,2668.6,2668.0,5.572]
[1749052425987,1.2881,2668.8,2668.4,3.2078]
[1749052426292,0.74911,2668.6,2668.4,0.74915]
[1749052426592,0.74912,2668.6,2668.4,0.74914]
[1749052426792,0.74912,2668.6,2668.5,0.74913]
[1749052427486,0.74913,2668.5,2668.4,0.74913]
[1749052427787,0.74916,2668.4,2668.3,0.00562525]
[1749052429291,6.99726,2668.4,2668.3,0.00562525]
[1749052430290,3.2078,2668.6,2668.3,0.00562525]
[1749052430490,0.74914,2668.5,2668.4,0.74916]
[1749052430892,0.74914,2668.5,2668.3,0.00562525]
[1749052431093,3.2078,2668.6,2668.3,0.75479525]
[1749052431294,0.74916,2668.4,2668.3,0.75479525]
[1749052431493,0.74915,2668.5,2668.3,0.75479525]
[1749052431700,0.74916,2668.4,2668.3,0.75479525]
[1749052432189,0.74914,2668.5,2668.4,0.74914]
[1749052432898,0.74913,2668.5,2668.4,0.74914]
[1749052433193,3.95692,2668.6,2668.3,0.00562525]
[1749052433399,0.74914,2668.5,2668.4,0.74913]
[1749052433898,0.74916,2668.4,2668.3,0.75479525]
[1749052434495,0.74916,2668.4,2668.3,0.00562525]
[1749052434693,0.74929,2668.0,2667.8,0.9023]
[1749052434899,0.74929,2668.0,2667.9,0.74926]
[1749052435194,3.95704,2668.2,2668.1,0.74924]
[1749052435497,0.7493,2668.0,2667.9,0.74928]
[1749052435694,0.74925,2668.1,2668.0,0.74924]
[1749052435902,3.95704,2668.2,2668.1,0.74924]
[1749052436087,0.74917,2668.4,2668.3,0.74916]
[1749052436296,0.74921,2668.3,2668.2,0.74919]
[1749052436494,0.74926,2668.1,2668.0,0.74925]
[1749052436801,0.74933,2667.8,2667.7,0.75494525]
[1749052436996,0.74933,2667.8,2667.7,0.00562525]
[1749052437298,0.74933,2667.8,2667.7,0.75497525]
[1749052437597,0.74933,2667.8,2667.7,0.00562525]
[1749052437896,5.74933,2667.8,2667.7,0.00562525]
[1749052438107,0.74943,2667.5,2667.4,0.7494]
[1749052438401,0.74952,2667.2,2667.1,0.74952]
[1749052438595,0.74955,2667.1,2667.0,0.74954]
[1749052438793,0.74958,2666.9,2666.8,3.95737]
[1749052439389,0.00562525,2667.1,2666.6,5.537]
[1749052439597,0.74962,2666.8,2666.7,0.74961]
[1749052440206,0.74967,2666.6,2666.5,0.74969]
[1749052440594,1.87388,2667.0,2666.3,6.3813]
[1749052440595,1.87402,2666.8,2666.3,0.8443]
[1749052440795,0.7497,2666.5,2666.4,0.7497]
[1749052441199,0.74968,2666.6,2666.5,0.74966]
[1749052441402,0.74972,2666.5,2666.4,0.74971]
[1749052441602,1.99178,2666.6,2666.5,0.74969]
[1749052442199,0.74968,2666.6,2666.5,0.74969]
[1749052442699,3.95745,2666.7,2666.5,0.74969]
[1749052442903,0.74956,2667.0,2666.5,5.538]
[1749052443104,0.00562525,2667.1,2666.6,1.2461]
[1749052443499,0.00562525,2667.1,2667.0,0.74955]
[1749052444408,0.00562525,2667.1,2667.0,1.97205]
[1749052445604,3.2078,2667.9,2667.0,30.7505]
[1749052445795,0.74906,2668.8,2668.4,0.74913]
[1749052445999,0.74897,2669.1,2668.8,3.2078]
[1749052446196,0.74899,2669.0,2668.9,1.2225]
[1749052446401,1.2464,2669.5,2668.9,1.2225]
[1749052446604,0.00562525,2669.5,2668.9,1.22812525]
[1749052447106,0.7489,2669.4,2669.1,3.95674]
[1749052447306,0.00562525,2669.5,2669.1,3.95674]
[1749052447700,0.74889,2669.4,2669.1,3.2078]
[1749052447896,0.00562525,2669.5,2669.1,3.95674]
[1749052447897,0.74891,2669.3,2669.1,3.95674]
[1749052448105,0.00562525,2669.5,2669.1,3.2078]
[1749052448602,0.00562525,2669.5,2669.2,1.2941]
[1749052448802,0.00562525,2669.5,2669.4,0.74888]
[1749052450109,0.00562525,2669.5,2669.3,0.74889]
[1749052450110,0.75448525,2669.5,2669.3,0.74889]
[1749052450309,0.74891,2669.3,2669.2,1.2941]
[1749052450507,0.00562525,2669.5,2669.1,3.2078]
[1749052450807,0.7489,2669.4,2669.2,0.74892]
[1749052451907,0.7489,2669.4,2669.2,0.74893]
[1749052452103,0.00562525,2669.5,2669.1,5.26855]
[1749052452309,0.00562525,2669.5,2669.1,4.5196]
[1749052452310,0.74893,2669.3,2669.1,4.5196]
[1749052452511,0.74893,2669.3,2669.2,0.74893]
[1749052452808,0.75449525,2669.5,2669.3,0.74888]
[1749052453107,0.75447525,2669.5,2669.4,0.74888]
[1749052453408,0.00562525,2669.5,2669.4,0.74888]
[1749052453907,0.00562525,2669.5,2669.4,3.95668]
[1749052454805,0.75447525,2669.5,2669.4,3.95668]
[1749052455305,0.00562525,2669.5,2669.4,3.95668]
[1749052455510,0.75447525,2669.5,2669.4,3.95668]
[1749052455709,0.75447525,2669.5,2669.4,3.2078]
[1749052456205,0.75447525,2669.5,2669.4,4.4895]
[1749052456900,0.75447525,2669.5,2668.9,0.00562525]
[1749052456901,0.74899,2669.0,2668.9,3.21342525]
[1749052457504,0.74899,2669.0,2668.9,5.25e-06]
[1749052457505,5.74899,2669.0,2668.9,5.25e-06]
[1749052457805,8.95679,2669.0,2668.9,5.25e-06]
[1749052458112,14.49279,2669.0,2668.9,5.25e-06]
[1749052458506,0.74924,2668.1,2668.0,4.0615]
[1749052459607,1.87283,2668.5,2668.0,4.81076]
[1749052459918,0.74916,2668.4,2668.3,3.2078]
[1749052462111,0.74916,2668.4,2668.1,1.2845]
[1749052462112,0.74921,2668.2,2668.1,1.2845]
[1749052463711,0.74924,2668.1,2668.0,4.0615]
[1749052467020,0.74933,2667.8,2667.7,4.4469]
[1749052467417,0.74935,2667.7,2667.6,0.8442]
[1749052467611,1.87363,2667.4,2667.0,5.358]
[1749052467810,0.74952,2667.1,2667.0,5.358]
[1749052470720,0.74951,2667.2,2667.0,6.10753]
[1749052470916,1.87344,2667.7,2667.0,5.358]
[1749052471117,0.74944,2667.4,2667.3,3.2078]
[1749052472417,0.74952,2667.1,2667.0,0.8766]
[1749052472613,0.74952,2667.1,2667.0,4.0844]
[1749052473216,0.74952,2667.1,2667.0,5.3566]
[1749052473425,0.74952,2667.1,2667.0,6.10615]
[1749052474217,0.74948,2667.3,2667.2,0.74948]
[1749052474411,1.8734,2667.7,2667.0,5.3566]
[1749052474618,0.74941,2667.5,2667.4,3.95722]
[1749052474826,5.51162525,2668.0,2667.4,3.2078]
[1749052475021,0.7493,2667.9,2667.8,3.2078]
[1749052475521,0.74938,2667.6,2667.5,2.0367]
[1749052476017,0.74937,2667.7,2667.5,2.78611]
[1749052476221,0.74937,2667.7,2667.6,3.95718]
[1749052476525,0.74937,2667.7,2667.6,3.2078]
[1749052477718,0.74937,2667.7,2667.6,3.95718]
[1749052478228,0.00562525,2668.0,2667.6,8.2078]
[1749052478426,0.74933,2667.8,2667.7,2.1077]
[1749052478623,0.74933,2667.8,2667.7,0.8331]
[1749052479019,0.74932,2667.9,2667.7,0.8331]
[1749052479223,0.74933,2667.8,2667.7,1.58244]
[1749052479424,0.74933,2667.8,2667.7,0.8331]
[1749052480427,0.00562525,2668.0,2667.7,0.8331]
[1749052480729,0.7493,2667.9,2667.7,0.8331]
[1749052480928,0.00562525,2668.0,2667.8,3.2078]
[1749052481128,0.7493,2667.9,2667.8,3.2078]
[1749052481431,0.75489525,2668.0,2667.8,3.2078]
[1749052481629,0.00562525,2668.0,2667.8,3.2078]
[1749052481827,0.00562525,2668.0,2667.8,3.95712]
[1749052482123,0.00562525,2668.0,2667.9,0.7493]
[1749052483329,0.00562525,2668.0,2667.9,5.7493]
[1749052483526,5.08043,2668.8,2668.2,0.74921]
[1749052483727,0.74914,2668.5,2668.3,0.8894]
[1749052484430,0.74911,2668.6,2668.3,0.8894]
[1749052484625,0.74911,2668.6,2668.4,3.2078]
[1749052484923,0.00562525,2668.7,2668.4,3.2078]
[1749052485129,0.00562525,2668.7,2668.6,0.7491]
[1749052487733,0.00562525,2668.7,2668.4,3.2078]
[1749052487925,0.75470525,2668.7,2668.4,3.95695]
[1749052488326,0.00562525,2668.7,2668.4,3.2078]
[1749052488626,0.74912,2668.6,2668.4,3.2078]
[1749052488824,0.74912,2668.6,2668.4,3.95696]
[1749052489728,0.74911,2668.6,2668.4,3.2078]
[1749052489926,0.74911,2668.6,2668.4,3.95695]
[1749052490229,0.00562525,2668.7,2668.1,3.21342525]
[1749052490230,0.74921,2668.2,2668.1,3.21342525]
[1749052490434,1.2866,2668.6,2668.1,3.21342525]
[1749052490733,0.74918,2668.4,2668.1,3.96266525]
[1749052490922,0.74921,2668.3,2668.1,3.21342525]
[1749052491125,0.74921,2668.2,2668.1,3.21342525]
[1749052491928,0.74921,2668.2,2668.1,0.00562525]
[1749052495527,0.74921,2668.2,2668.1,3.21342525]
[1749052499238,0.74933,2667.8,2667.7,5.505]
[1749052499434,0.74933,2667.8,2667.7,8.7128]
[1749052499834,0.74933,2667.8,2667.7,3.2078]
[1749052500732,0.74932,2667.9,2667.7,3.2078]
[1749052500935,0.74929,2668.0,2667.7,3.95715]
[1749052501136,1.87302,2668.3,2667.7,3.2078]
[1749052501326,0.74931,2667.9,2667.7,3.2078]
[1749052501531,1.87304,2668.2,2667.7,3.2078]
[1749052501532,0.74933,2667.8,2667.7,3.2078]
[1749052501740,0.74932,2667.9,2667.7,3.2078]
[1749052502232,3.13575,2668.2,2667.7,3.2078]
[1749052502438,0.74929,2668.0,2667.7,3.95715]
[1749052502639,5.08065,2668.5,2667.7,3.2078]
[1749052502842,0.7493,2667.9,2667.7,3.2078]
[1749052503236,0.74933,2667.8,2667.7,3.2078]
[1749052504353,0.74932,2667.9,2667.7,3.2078]
[1749052504534,0.74931,2667.9,2667.7,3.2078]
[1749052504738,0.74928,2668.0,2667.7,3.95714]
[1749052504939,0.74931,2667.9,2667.7,3.2078]
[1749052505139,0.74933,2667.8,2667.7,3.2078]
[1749052505351,1.87342,2667.7,2666.9,4.30572781]
[1749052505539,3.2078,2667.3,2666.4,3.2078]
[1749052505735,0.74966,2666.6,2666.5,0.8302]
[1749052506246,0.74962,2666.8,2666.5,1.57989]
[1749052506447,0.74965,2666.7,2666.5,2.0194]
[1749052506741,0.00562525,2667.1,2667.0,0.74955]
[1749052506934,0.00562525,2667.1,2667.0,3.95735]
[1749052507137,0.00562525,2667.1,2667.0,5.14655]
[1749052507343,0.74937,2667.7,2667.4,0.74944]
[1749052507551,0.74937,2667.7,2667.5,2.0259]
[1749052507851,3.2078,2668.2,2667.7,0.74934]
[1749052508044,0.74928,2668.0,2667.8,1.2989]
[1749052508451,3.21342525,2668.2,2667.8,1.2989]
[1749052508649,3.96265525,2668.2,2667.9,0.74929]
[1749052508850,3.21342525,2668.2,2668.0,1.2989]
[1749052509246,0.75485525,2668.2,2668.0,1.2989]
[1749052509448,0.00562525,2668.2,2668.0,1.2989]
[1749052509643,5.475,2669.3,2668.3,1.87292]
[1749052509849,0.74892,2669.3,2668.7,3.2078]
[1749052510156,0.74902,2668.9,2668.8,1.2989]
[1749052510449,0.74894,2669.2,2668.8,1.2989]
[1749052510643,0.00562525,2669.3,2668.8,6.7739]
[1749052511048,0.00562525,2669.3,2669.0,0.74898]
[1749052511259,0.00562525,2669.3,2669.1,2.092]
[1749052511445,0.00562525,2669.3,2669.2,1.2719]
[1749052512948,0.00562525,2669.3,2669.2,2.83453]
[1749052514157,0.00562525,2669.3,2669.2,7.5596]
[1749052514655,0.00562525,2669.3,2669.2,8.30853]
[1749052515064,0.00562525,2669.3,2669.2,7.5596]
[1749052515355,0.00562525,2669.3,2669.2,8.30853]
[1749052515562,0.00562525,2669.3,2669.2,7.5596]
[1749052516148,0.00562525,2669.3,2669.2,8.30853]
[1749052516357,0.00562525,2669.3,2669.2,7.5596]
[1749052516661,0.00562525,2669.3,2669.2,8.30853]
[1749052516958,3.2078,2669.9,2669.3,1.87227]
[1749052517157,0.7487,2670.1,2669.7,0.74877]
[1749052517453,3.2078,2670.6,2669.8,6.1201]
[1749052517760,1.87122,2670.8,2670.3,3.2078]
[1749052518060,0.7486,2670.4,2670.3,3.2078]
[1749052518456,0.00562525,2670.5,2670.3,3.2078]
[1749052518653,0.75419525,2670.5,2670.4,0.8051]
[1749052519461,1.8715,2670.4,2669.8,0.8419]
[1749052519657,0.74869,2670.1,2669.8,1.647]
[1749052519853,0.74867,2670.2,2669.8,1.647]
[1749052520058,0.75419525,2670.5,2670.2,0.74864]
[1749052520351,0.75419525,2670.5,2670.1,0.74867]
[1749052520352,0.75420525,2670.5,2670.1,0.74867]
[1749052520556,0.75420525,2670.5,2670.2,0.74865]
[1749052520758,0.00562525,2670.5,2670.3,3.2078]
[1749052520951,0.00562525,2670.5,2670.3,3.95642]
[1749052521554,0.00562525,2670.5,2670.4,0.7486]
[1749052521761,0.00562525,2670.5,2670.4,1.5582]
[1749052523962,0.00562525,2670.5,2670.4,0.8096]
[1749052524160,0.75419525,2670.5,2670.4,0.8096]
[1749052525059,0.74861,2670.4,2670.1,0.74867]
[1749052525255,0.00562525,2670.5,2670.4,0.7486]
[1749052525563,0.00562525,2670.5,2670.3,3.95642]
[1749052525753,0.00562525,2670.5,2670.4,0.7486]
[1749052526357,0.00562525,2670.5,2670.3,3.9564]
[1749052526557,0.00562525,2670.5,2670.4,0.7486]
[1749052527250,1.87096,2671.2,2670.6,0.74852]
[1749052527554,0.74846,2670.9,2670.7,3.2078]
[1749052527760,0.74846,2670.9,2670.7,3.95631]
[1749052527956,0.74846,2670.9,2670.7,3.2078]
[1749052528150,0.74845,2671.0,2670.7,3.9563]
[1749052528558,0.74846,2670.9,2670.7,3.9563]
[1749052528863,0.74844,2671.0,2670.8,0.74848]
[1749052529164,0.00562525,2671.1,2670.7,3.2078]
[1749052529461,0.00562525,2671.1,2670.7,3.95631]
[1749052529462,0.74846,2670.9,2670.7,3.95631]
[1749052529660,0.00562525,2671.1,2671.0,0.74843]
[1749052529856,0.00562525,2671.1,2671.0,3.95623]
[1749052531165,0.00562525,2671.1,2671.0,3.2078]
[1749052531353,0.00562525,2671.1,2671.0,3.95623]
[1749052531558,0.00562525,2671.1,2670.9,6.2464]
[1749052531757,0.00562525,2671.1,2671.0,3.95623]
[1749052532562,0.00562525,2671.1,2671.0,5.23823]
[1749052532760,3.2078,2671.7,2671.6,0.74826]
[1749052532965,0.74819,2671.9,2671.6,0.74826]
[1749052533157,0.74817,2672.0,2671.6,3.2078]
[1749052533462,0.74811,2672.2,2671.9,0.74816]
[1749052533668,0.74812,2672.1,2671.9,0.74816]
[1749052533966,0.74815,2672.0,2671.8,0.00561451]
[1749052534167,0.00561451,2672.3,2671.8,1.28761451]
[1749052534168,1.87580451,2672.3,2671.8,1.28761451]
[1749052534373,0.74818,2671.9,2671.8,6.72361451]
[1749052534665,0.74818,2671.9,2671.8,0.00561451]
[1749052535266,0.00561451,2672.3,2671.8,0.00561451]
[1749052535460,0.74812,2672.1,2671.9,0.74817]
[1749052535655,0.75369451,2672.3,2671.8,1.29671451]
[1749052535961,3.2078,2672.9,2671.9,44.69566]
[1749052536163,0.74759,2674.1,2672.9,1.86974]
[1749052536361,0.862,2674.3,2672.9,1.86974]
[1749052536362,0.74753,2674.2,2674.0,3.2078]
[1749052536667,0.7475,2674.4,2674.0,3.2078]
[1749052536861,3.2078,2674.7,2674.3,3.2078]
[1749052537059,0.74748,2674.4,2674.3,3.2078]
[1749052537266,0.74751,2674.3,2674.2,0.00561451]
[1749052538155,1.2341,2674.7,2674.2,0.00561451]
[1749052538363,0.74749,2674.4,2674.2,0.00561451]
[1749052538560,0.74746,2674.5,2674.2,0.00561451]
[1749052538760,0.74745,2674.5,2674.4,3.2078]
[1749052538965,3.2078,2675.7,2674.4,8.6428]
[1749052539168,3.2078,2675.7,2675.2,3.2078]
[1749052539364,0.74714,2675.6,2675.5,3.2078]
[1749052542371,1.86816,2675.2,2674.7,5.433]
[1749052542672,0.74725,2675.2,2675.1,3.2078]
[1749052543165,1.86778,2675.8,2675.1,3.2078]
[1749052543475,0.75273451,2675.7,2675.4,3.95499]
[1749052543766,0.74717,2675.5,2675.4,3.2078]
[1749052544368,0.74715,2675.6,2675.4,3.2078]
[1749052544675,0.74717,2675.5,2675.4,4.4739]
[1749052547371,3.2078,2677.2,2675.4,65.9509]
[1749052547672,0.74678,2676.9,2676.8,3.2078]
[1749052548575,3.73321,2677.5,2676.6,1.30100392]
[1749052548576,0.74683,2676.7,2676.6,1.30100392]
[1749052548975,0.74683,2676.7,2676.6,3.92e-06]
[1749052549178,8.95463,2676.7,2676.6,3.92e-06]
[1749052549476,3.73447,2676.5,2675.6,3.2078]
[1749052549776,0.7472,2675.4,2675.3,3.2078]
[1749052550070,5.07578,2675.5,2674.8,3.2078]
[1749052550275,1.86837,2674.9,2674.1,3.2078]
[1749052550468,0.74753,2674.2,2674.1,3.2078]
[1749052550774,0.74759,2674.0,2673.9,0.00560392]
[1749052552569,0.74759,2674.0,2673.5,3.2078]
[1749052552570,0.7477,2673.6,2673.5,3.2078]
[1749052552872,1.86926,2673.6,2672.6,3.2078]
[1749052553178,1.2136,2673.5,2672.9,3.2078]
[1749052553474,0.74774,2673.5,2673.2,3.2078]
[1749052553671,3.2078,2673.7,2673.2,3.2078]
[1749052553672,0.00560392,2673.6,2673.2,3.2078]
[1749052553874,0.00560392,2673.6,2673.5,3.2078]
[1749052554079,0.00560392,2673.6,2673.2,3.2078]
[1749052554374,0.00560392,2673.6,2673.5,3.2078]
[1749052554871,0.00560392,2673.6,2673.2,4.4162]
[1749052555070,0.00560392,2673.6,2673.2,9.8452]
[1749052555481,0.74773,2673.5,2673.2,9.8452]
[1749052555775,0.74778,2673.3,2673.2,3.2078]
[1749052556074,0.74744,2674.6,2673.3,1.86947]
[1749052556282,4.4761,2675.1,2674.3,3.2078]
[1749052556576,5.429,2675.4,2674.6,3.2078]
[1749052556777,5.429,2675.4,2674.7,1.1993]
[1749052556982,0.74736,2674.9,2674.8,0.00560392]
[1749052557477,1.29872658,2675.3,2674.8,0.00560392]
[1749052557775,0.74727,2675.2,2674.9,3.95512]
[1749052557976,0.74731,2675.0,2674.9,3.2078]
[1749052558177,0.7473,2675.1,2674.9,3.2078]
[1749052558978,0.7473,2675.1,2674.9,3.95514]
[1749052559277,0.74731,2675.0,2674.9,3.2078]
[1749052561080,0.74714,2675.6,2675.5,3.2078]
[1749052561480,0.74712,2675.7,2675.5,3.2078]
[1749052561785,0.7471,2675.8,2675.5,4.4415]
[1749052562083,5.402,2675.9,2675.7,0.74711]
[1749052562279,5.402,2675.9,2675.8,0.74709]
[1749052562476,3.2078,2676.2,2675.8,0.74708]
[1749052562683,3.2078,2676.2,2675.5,4.4415]
[1749052562877,3.2078,2676.2,2675.5,3.2078]
[1749052562878,1.86751,2676.1,2675.5,3.2078]
[1749052563078,0.74707,2675.9,2675.8,3.2078]
[1749052563279,0.74707,2675.9,2675.1,1.2444]
[1749052563280,1.2297,2676.1,2675.5,3.2078]
[1749052563781,1.86775,2675.8,2675.2,3.2078]
[1749052563977,0.74722,2675.4,2675.2,3.95505]
[1749052564178,0.74722,2675.4,2675.3,3.2078]
[1749052564388,0.74718,2675.6,2675.3,3.2078]
[1749052564579,5.402,2675.7,2675.3,3.2078]
[1749052564779,6.14914,2675.7,2675.4,0.7472]
[1749052564976,5.402,2675.7,2675.6,3.2078]
[1749052565381,6.14905,2676.0,2675.6,3.2078]
[1749052565581,1.86775,2675.8,2674.9,4.0544]
[1749052565785,1.2358,2675.9,2675.1,3.2078]
[1749052565988,1.2358,2675.9,2675.4,3.2078]
[1749052566181,0.7471,2675.8,2675.6,0.74714]
[1749052566387,1.2358,2675.9,2675.8,0.7471]
[1749052566388,5.402,2675.9,2675.8,0.7471]
[1749052566586,0.7471,2675.8,2675.7,3.2078]
[1749052566786,0.74708,2675.9,2675.7,3.95491]
[1749052567090,0.7471,2675.8,2675.7,3.95491]
[1749052567581,6.6378,2676.1,2675.7,3.2078]
[1749052567884,0.7471,2675.8,2675.7,3.2078]
[1749052568079,3.2078,2675.8,2675.0,3.2078]
[1749052568281,0.74723,2675.4,2675.2,0.74726]
[1749052568583,0.74723,2675.4,2675.0,3.2078]
[1749052568584,0.74719,2675.5,2675.3,3.95504]
[1749052568986,0.74714,2675.7,2675.5,0.74716]
[1749052569193,0.74711,2675.8,2675.6,0.74713]
[1749052569394,0.74713,2675.7,2675.6,0.74714]
[1749052569683,0.74712,2675.8,2675.6,0.74714]
[1749052569890,5.402,2676.0,2675.4,1.2638]
[1749052570092,0.74721,2675.4,2675.3,3.2078]
[1749052570290,3.1232,2675.9,2675.4,0.74718]
[1749052570583,0.74716,2675.6,2675.5,0.74717]
[1749052570783,6.6565,2675.9,2675.3,1.2638]
[1749052570991,0.74724,2675.3,2675.2,3.2078]
[1749052571186,0.74732,2675.0,2674.9,2.1104]
[1749052571389,0.74732,2675.0,2674.9,0.8466]
[1749052571784,6.6236,2675.5,2674.8,3.21340392]
[1749052571989,0.74723,2675.4,2675.1,3.2078]
[1749052572195,0.7472,2675.5,2675.4,0.7472]
[1749052572387,0.74712,2675.8,2675.7,0.74712]
[1749052572692,6.14812,2675.8,2675.7,3.95492]
[1749052573190,6.14812,2675.8,2675.7,3.2078]
[1749052573895,0.74715,2675.6,2675.5,1.1873]
[1749052574194,5.401,2675.8,2675.3,3.2078]
[1749052574195,0.7472,2675.5,2675.3,3.2078]
[1749052574398,0.74718,2675.5,2675.4,0.74719]
[1749052574586,5.401,2675.8,2675.3,3.2078]
[1749052574783,0.74719,2675.5,2675.3,3.2078]
[1749052575290,1.86768,2675.9,2675.3,3.2078]
[1749052575493,0.74718,2675.5,2675.4,1.255]
[1749052575694,0.74718,2675.5,2675.4,6.06731]
[1749052576394,7.26858,2676.1,2675.4,5.3201]
[1749052576595,0.74713,2675.7,2675.6,0.74713]
[1749052576804,0.74713,2675.7,2675.6,3.95493]
[1749052577294,0.74713,2675.7,2675.6,3.2078]
[1749052577487,0.74713,2675.7,2675.4,2.1123]
[1749052577488,0.74718,2675.5,2675.4,2.1123]
[1749052577688,3.0966,2676.1,2675.4,3.2078]
[1749052577887,0.74717,2675.6,2675.5,0.74717]
[1749052578093,0.74717,2675.6,2675.5,2.03267]
[1749052578283,0.74713,2675.7,2675.6,0.74713]
[1749052578489,0.74713,2675.7,2675.5,1.2855]
[1749052578689,0.74715,2675.7,2675.6,0.74714]
[1749052578895,0.74715,2675.7,2675.6,0.74715]
[1749052579497,0.74708,2675.9,2675.8,0.74709]
[1749052579696,5.401,2676.1,2675.6,0.74715]
[1749052579697,0.74714,2675.7,2675.6,0.74715]
[1749052580197,1.86749,2676.2,2675.7,0.7471]
[1749052580499,0.74704,2676.0,2675.9,3.2078]
[1749052580702,0.74713,2675.7,2675.6,3.2078]
[1749052580888,0.74724,2675.3,2675.2,0.8689]
[1749052581293,0.74724,2675.3,2675.2,1.61617]
[1749052581502,0.74724,2675.3,2675.2,4.0767]
[1749052581694,1.86779,2675.8,2675.2,4.0767]
[1749052581890,5.401,2675.8,2675.6,0.74715]
[1749052582104,0.74715,2675.7,2675.5,3.95497]
[1749052582399,3.2078,2676.0,2675.5,3.2078]
[1749052582599,3.2078,2676.0,2675.6,2.02115]
[1749052582901,0.74712,2675.8,2675.7,1.274]
[1749052583100,0.74716,2675.6,2675.5,3.2078]
[1749052583700,1.86772,2675.9,2675.3,4.4818]
[1749052583903,0.74721,2675.4,2675.3,1.274]
[1749052584097,0.74724,2675.3,2675.2,0.8689]
[1749052584810,0.74724,2675.3,2674.8,0.00560392]
[1749052584811,0.74735,2674.9,2674.8,3.21340392]
[1749052585298,0.74735,2674.9,2674.8,3.96078392]
[1749052585608,0.74735,2674.9,2674.8,3.21340392]
[1749052585903,1.86813,2675.3,2674.8,3.96078392]
[1749052586207,0.74735,2674.9,2674.8,3.96078392]
[1749052586600,0.74735,2674.9,2674.8,3.21340392]
[1749052587105,0.74735,2674.9,2674.8,0.00560392]
[1749052587498,8.6088,2675.4,2674.1,3.2078]
[1749052587499,0.74755,2674.2,2674.1,3.2078]
[1749052588096,0.74766,2673.8,2673.7,3.2078]
[1749052588306,0.74764,2673.9,2673.7,3.95547]
[1749052588503,0.00560392,2674.1,2673.8,1.2425]
[1749052588703,0.00560392,2674.1,2674.0,3.95538]
[1749052589199,0.75318392,2674.1,2674.0,3.2078]
[1749052589405,0.00560392,2674.1,2674.0,3.9554]
[1749052589699,0.75318392,2674.1,2674.0,3.2078]
[1749052590207,0.75318392,2674.1,2674.0,3.9554]
[1749052590411,0.00560392,2674.1,2674.0,3.9554]
[1749052590705,3.2078,2675.2,2674.2,1.86885]
[1749052590912,0.7473,2675.1,2675.0,3.2078]
[1749052591303,0.74741,2674.7,2674.6,0.74743]
[1749052591502,0.7474,2674.8,2674.5,1.2939]
[1749052591804,0.74734,2675.0,2674.7,3.2078]
[1749052592007,4.059,2675.6,2674.8,1.2939]
[1749052592205,0.74724,2675.3,2675.2,3.95505]
[1749052592405,3.2078,2675.6,2675.2,3.95505]
[1749052592602,1.86777,2675.8,2675.5,3.2078]
[1749052592806,0.74716,2675.6,2675.5,3.2078]
[1749052593011,1.86762,2676.0,2675.5,5.25007]
[1749052593012,0.74715,2675.7,2675.5,5.25007]
[1749052593211,0.74716,2675.6,2675.5,4.5029]
[1749052593526,0.74716,2675.6,2675.5,3.2078]
[1749052593719,0.74715,2675.7,2675.5,3.2078]
[1749052593909,0.7471,2675.8,2675.6,0.74714]
[1749052594113,0.74713,2675.7,2675.6,1.2951]
[1749052594310,0.74716,2675.6,2675.5,3.2078]